bitfinex-derivatives/quotes_SOLF0:USTF0_20241002
["timestamp","ask_amount","ask_price","bid_price","bid_amount"]
[1727875355091,0.12502,144.29,144.26,16.64]
[1727875355290,0.12502,144.29,144.28,3.466]
[1727875356694,0.12502,144.29,144.27,3.4661]
[1727875357991,0.12502,144.29,144.27,3.4662]
[1727875358594,0.12502,144.29,144.26,16.64]
[1727875358801,0.12502,144.29,144.28,3.466]
[1727875361997,0.12502,144.29,144.25,4.0447]
[1727875362298,3.4661,144.28,144.25,4.0447]
[1727875362495,0.12502,144.29,144.25,6.1097]
[1727875362893,3.4661,144.28,144.25,6.1097]
[1727875363199,3.4661,144.28,144.26,3.4664]
[1727875363397,3.59082,144.29,144.26,3.4664]
[1727875364085,0.12502,144.29,144.25,2.6431]
[1727875364287,0.12502,144.29,144.28,3.466]
[1727875365794,0.12502,144.29,144.28,20.106]
[1727875367203,0.12502,144.29,144.28,3.466]
[1727875372196,3.59072,144.29,144.27,3.4661]
[1727875372398,0.12502,144.29,144.26,16.64]
[1727875372705,0.12502,144.29,144.28,3.466]
[1727875373201,0.12502,144.29,144.26,3.4663]
[1727875373408,0.12502,144.29,144.25,1.3495]
[1727875373606,0.12502,144.29,144.22,16.64]
[1727875373907,16.76502,144.29,144.22,3.4673]
[1727875374407,3.4671,144.24,144.21,13.6293]
[1727875374607,3.4671,144.24,144.21,10.1618]
[1727875374912,18.11452,144.29,144.21,10.1618]
[1727875375202,3.4667,144.25,144.22,3.4672]
[1727875376200,3.4669,144.24,144.22,3.4672]
[1727875376605,18.11452,144.29,144.21,6.1]
[1727875376906,3.4672,144.23,144.21,6.1]
[1727875377210,3.4672,144.23,144.2,16.64]
[1727875377407,3.4672,144.23,144.21,3.4676]
[1727875377605,6.1,144.27,144.21,3.4676]
[1727875377903,6.1,144.27,144.18,9.50901615]
[1727875377904,16.64,144.25,144.18,20.1082]
[1727875378103,16.64,144.24,144.17,0.12502]
[1727875378304,6.1,144.23,144.17,0.12502]
[1727875378611,3.468,144.2,144.17,0.12502]
[1727875379796,3.468,144.2,144.17,3.59362]
[1727875380811,6.1,144.23,144.18,3.4683]
[1727875381010,3.4677,144.21,144.18,3.4683]
[1727875382105,3.4673,144.23,144.2,3.4678]
[1727875382308,19.48902,144.29,144.19,16.64]
[1727875382509,6.1,144.28,144.19,16.64]
[1727875382704,6.1,144.28,144.19,22.74]
[1727875383009,16.64,144.27,144.19,6.1]
[1727875383413,3.4673,144.23,144.19,9.5679]
[1727875383708,3.4673,144.23,144.19,6.1]
[1727875384802,3.4673,144.23,144.2,3.4679]
[1727875385216,3.467,144.24,144.21,3.4675]
[1727875385605,6.1,144.28,144.19,22.74]
[1727875385812,3.4671,144.24,144.19,22.74]
[1727875386311,19.48902,144.29,144.19,22.74]
[1727875386613,6.1,144.28,144.19,22.74]
[1727875386815,3.4666,144.26,144.21,16.64]
[1727875387005,1.47452,144.29,144.23,16.64]
[1727875387609,3.4662,144.27,144.23,16.64]
[1727875388007,3.4662,144.27,144.24,3.4668]
[1727875388203,1.47452,144.29,144.21,16.64]
[1727875388204,3.4667,144.25,144.21,16.64]
[1727875388414,1.47452,144.29,144.21,16.64]
[1727875388715,3.4664,144.27,144.21,16.64]
[1727875389116,1.47452,144.29,144.22,3.4673]
[1727875389312,3.4667,144.25,144.22,3.4673]
[1727875390219,3.4666,144.26,144.23,3.4671]
[1727875391223,16.64,144.26,144.18,7.5025]
[1727875391518,16.64,144.26,144.18,27.67902298]
[1727875391519,6.1,144.26,144.18,27.67902298]
[1727875391715,3.467,144.24,144.21,3.4676]
[1727875391913,6.1,144.26,144.18,24.1425]
[1727875392111,6.1,144.26,144.18,27.68446303]
[1727875392625,3.467,144.24,144.21,3.4675]
[1727875394119,3.467,144.24,144.18,27.68446303]
[1727875394319,6.1,144.26,144.23,3.467]
[1727875394320,3.4666,144.26,144.23,3.467]
[1727875394620,6.1,144.27,144.23,3.467]
[1727875395218,3.4667,144.25,144.23,3.467]
[1727875395521,3.4667,144.25,144.2,16.64]
[1727875395713,3.4667,144.25,144.22,3.4673]
[1727875396227,3.4673,144.23,144.18,24.1425]
[1727875396624,6.1,144.27,144.18,18.0425]
[1727875396823,3.4675,144.22,144.18,18.0425]
[1727875397125,6.1,144.27,144.18,18.0425]
[1727875398028,3.4672,144.23,144.2,3.4677]
[1727875398827,6.1,144.27,144.18,18.0425]
[1727875399124,6.1,144.27,144.18,21.48355142]
[1727875400026,3.4671,144.24,144.21,3.4676]
[1727875400221,17.9147,144.28,144.18,21.48355142]
[1727875400431,7.57452,144.29,144.22,16.64]
[1727875401222,3.4665,144.26,144.23,3.467]
[1727875401428,3.4665,144.26,144.22,16.64]
[1727875401631,3.4665,144.26,144.23,3.4669]
[1727875401830,3.4665,144.26,144.22,16.64]
[1727875402228,3.4663,144.27,144.24,3.4669]
[1727875403328,0.12502,144.29,144.22,16.64]
[1727875403532,0.12502,144.29,144.23,1.3303]
[1727875404029,3.4661,144.28,144.25,3.4665]
[1727875406444,0.12502,144.29,144.23,1.3303]
[1727875406630,0.12502,144.29,144.24,16.64]
[1727875406822,0.12502,144.29,144.24,17.9267]
[1727875407025,0.12502,144.29,144.25,3.4666]
[1727875407230,0.12502,144.29,144.24,17.9267]
[1727875407631,0.12502,144.29,144.27,3.466]
[1727875408629,0.12502,144.29,144.28,3.466]
[1727875412633,0.12502,144.29,144.28,20.106]
[1727875413438,3.4649,144.33,144.28,16.64]
[1727875413643,0.12502,144.35,144.3,16.64]
[1727875414031,0.12502,144.35,144.32,3.4648]
[1727875414531,3.58942,144.35,144.3,19.2979]
[1727875414931,3.4646,144.34,144.3,25.3979]
[1727875415130,0.12502,144.35,144.3,25.3979]
[1727875415332,0.12502,144.35,144.31,3.4651]
[1727875415525,3.4647,144.34,144.31,3.4651]
[1727875416436,3.4647,144.34,144.32,3.465]
[1727875416636,3.58932,144.35,144.3,25.3979]
[1727875416841,0.12502,144.35,144.3,25.3979]
[1727875417037,0.12502,144.35,144.32,16.64]
[1727875417737,0.12502,144.35,144.34,3.4645]
[1727875419341,0.12502,144.41,144.34,6.08]
[1727875419543,0.12502,144.41,144.35,16.64]
[1727875420053,0.12502,144.41,144.37,16.64]
[1727875420452,0.12502,144.41,144.38,3.4634]
[1727875420453,3.58802,144.41,144.38,3.4634]
[1727875421254,0.12502,144.41,144.37,16.64]
[1727875421463,0.12502,144.41,144.39,3.4632]
[1727875422366,0.12502,144.41,144.38,8.7647]
[1727875422552,3.58802,144.41,144.38,12.2282]
[1727875422757,0.12502,144.41,144.38,8.7647]
[1727875422956,3.4632,144.4,144.38,12.2282]
[1727875423157,0.12502,144.41,144.38,8.7647]
[1727875423558,3.58802,144.41,144.38,12.2281]
[1727875423968,0.12502,144.41,144.38,2.6847]
[1727875424170,0.12502,144.41,144.38,1.3472]
[1727875424461,16.76502,144.41,144.34,22.72]
[1727875424969,0.12502,144.41,144.37,16.64]
[1727875426068,3.58802,144.41,144.38,3.4634]
[1727875426274,0.12502,144.41,144.37,16.64]
[1727875426475,0.12502,144.41,144.38,19.3435]
[1727875426668,0.12502,144.41,144.38,25.4235]
[1727875426967,0.12502,144.41,144.39,3.4631]
[1727875427370,0.12502,144.41,144.4,3.4631]
[1727875429066,0.12502,144.41,144.39,3.4632]
[1727875429273,0.12502,144.41,144.38,25.4235]
[1727875429967,0.12502,144.41,144.39,3.4631]
[1727875431278,0.12502,144.41,144.39,3.4633]
[1727875432562,0.12502,144.41,144.38,8.7835]
[1727875432966,0.12502,144.41,144.36,16.64]
[1727875433275,3.4632,144.4,144.36,6.08]
[1727875433571,3.4632,144.4,144.37,3.4637]
[1727875434573,3.4632,144.4,144.36,6.08]
[1727875434767,3.4632,144.4,144.37,3.4637]
[1727875436374,0.12502,144.41,144.37,3.4637]
[1727875436561,3.4631,144.4,144.37,3.4637]
[1727875437071,3.4631,144.4,144.38,3.4635]
[1727875437570,3.4631,144.4,144.39,10.64]
[1727875437972,0.12502,144.41,144.4,3.4631]
[1727875438167,0.12502,144.41,144.4,14.1031]
[1727875438471,3.4634,144.39,144.38,10.64]
[1727875439271,3.4638,144.37,144.34,2.6149]
[1727875439471,3.4638,144.37,144.36,10.64]
[1727875439770,3.4639,144.37,144.34,3.4644]
[1727875439979,0.12502,144.41,144.33,16.63]
[1727875440182,0.12502,144.41,144.35,16.63]
[1727875440364,0.12502,144.41,144.37,16.63]
[1727875441367,3.58802,144.41,144.38,3.4634]
[1727875443581,0.12502,144.41,144.4,20.0931]
[1727875447684,3.462,144.45,144.42,3.4624]
[1727875447893,3.462,144.45,144.42,16.63]
[1727875448279,3.4626,144.43,144.39,6.08]
[1727875448482,3.53186466,144.47,144.39,22.71]
[1727875448675,0.12502,144.47,144.41,3.4627]
[1727875448988,0.12502,144.47,144.41,16.63]
[1727875449183,0.12502,144.47,144.42,3.4624]
[1727875450186,3.462,144.45,144.42,3.4624]
[1727875452291,3.462,144.45,144.41,16.63]
[1727875452292,3.4616,144.46,144.43,3.4622]
[1727875453087,0.12502,144.47,144.43,16.63]
[1727875453280,0.12502,144.47,144.43,22.71]
[1727875453479,0.12502,144.47,144.45,16.63]
[1727875453687,0.12502,144.47,144.46,3.4616]
[1727875454388,0.12502,144.47,144.45,16.63]
[1727875454689,0.12502,144.47,144.43,22.71]
[1727875455788,0.12502,144.47,144.44,3.4619]
[1727875456188,3.58642,144.47,144.44,3.4619]
[1727875459085,3.4617,144.46,144.44,3.4619]
[1727875460487,3.462,144.45,144.43,4.0391]
[1727875460690,22.69,144.45,144.35,0.12502]
[1727875460892,3.464,144.36,144.35,0.12502]
[1727875461389,22.69,144.37,144.29,0.12502]
[1727875461390,16.63,144.35,144.29,0.12502]
[1727875461697,3.4655,144.3,144.29,0.12502]
[1727875461889,16.63,144.35,144.29,0.12502]
[1727875462196,6.06,144.34,144.29,0.12502]
[1727875462587,16.63,144.28,144.18,1.3074]
[1727875462798,0.12502,144.29,144.18,1.3074]
[1727875462799,16.63,144.26,144.18,1.3074]
[1727875462993,16.63,144.24,144.14,18.0084]
[1727875463291,6.06,144.23,144.14,18.0084]
[1727875463493,6.06,144.23,144.14,1.3784]
[1727875464395,3.4684,144.18,144.14,1.3784]
[1727875464691,6.06,144.23,144.11,0.12502]
[1727875464692,26.65,144.2,144.11,0.12502]
[1727875464892,6.08,144.19,144.11,0.12502]
[1727875465499,3.4687,144.17,144.11,0.12502]
[1727875465797,6.08,144.19,144.11,0.12502]
[1727875466193,26.65,144.2,144.11,0.12502]
[1727875466394,32.73,144.2,144.11,0.12502]
[1727875466990,26.65,144.17,144.11,0.12502]
[1727875467693,3.471,144.07,144.06,1.3824]
[1727875467899,3.471,144.07,144.05,6.20502]
[1727875468394,3.4709,144.08,144.05,6.20502]
[1727875468597,26.65,144.12,144.05,6.20502]
[1727875468800,26.65,144.15,144.05,6.20502]
[1727875468997,3.4702,144.11,144.05,6.20502]
[1727875469399,6.08,144.15,144.05,6.20502]
[1727875470202,6.08,144.15,144.06,3.4711]
[1727875470595,27.19592,144.17,144.05,6.20502]
[1727875470897,33.27592,144.17,144.05,6.20502]
[1727875471493,3.4698,144.13,144.06,3.4712]
[1727875471702,33.27592,144.17,144.06,3.4712]
[1727875472294,27.19592,144.17,144.05,6.20502]
[1727875472596,33.27592,144.17,144.07,3.471]
[1727875472805,33.27592,144.17,144.05,32.85502]
[1727875473294,3.4698,144.13,144.05,32.85502]
[1727875473495,0.12502,144.17,144.05,32.85502]
[1727875473703,0.12502,144.17,144.06,1.3869]
[1727875474300,0.12502,144.17,144.08,26.65]
[1727875474493,0.12502,144.17,144.09,8.7153]
[1727875474801,0.12502,144.17,144.09,12.14997635]
[1727875475596,0.12502,144.17,144.12,26.65]
[1727875475800,0.12502,144.23,144.13,6.08]
[1727875476104,0.12502,144.23,144.15,26.65]
[1727875476999,3.4677,144.21,144.15,30.1188]
[1727875477199,0.12502,144.23,144.15,26.65]
[1727875477606,3.4676,144.22,144.16,3.4687]
[1727875477906,3.4676,144.22,144.17,6.08]
[1727875478106,3.4676,144.22,144.17,7.3688]
[1727875478905,3.4677,144.21,144.17,1.2888]
[1727875479210,0.12502,144.23,144.18,6.08]
[1727875479904,3.4678,144.21,144.18,6.08]
[1727875480606,3.4675,144.22,144.18,6.08]
[1727875480809,0.12502,144.23,144.18,6.08]
[1727875481693,3.4679,144.2,144.18,6.08]
[1727875482905,3.4677,144.21,144.18,6.08]
[1727875483106,0.12502,144.23,144.18,6.08]
[1727875483307,0.12502,144.23,144.18,7.4381]
[1727875483505,0.12502,144.23,144.18,10.89616818]
[1727875483904,0.12502,144.23,144.18,7.4381]
[1727875484306,3.4678,144.21,144.18,7.4381]
[1727875484510,0.12502,144.23,144.18,7.4381]
[1727875484711,0.12502,144.23,144.18,1.3581]
[1727875485011,3.468,144.2,144.18,1.3581]
[1727875488107,0.12502,144.23,144.18,1.3581]
[1727875488315,3.4684,144.18,144.17,7.3688]
[1727875488517,3.4684,144.18,144.17,1.2888]
[1727875488815,3.4684,144.18,144.16,6.08]
[1727875489213,0.12502,144.23,144.13,2.6025]
[1727875489407,26.65,144.21,144.13,8.6825]
[1727875491509,26.65,144.21,144.13,12.1519]
[1727875491705,3.4687,144.17,144.13,12.1519]
[1727875494517,26.65,144.21,144.13,12.1519]
[1727875494818,26.65,144.21,144.13,8.6825]
[1727875495410,3.4688,144.17,144.14,3.4693]
[1727875496820,16.66,144.21,144.15,6.08]
[1727875497018,3.4681,144.2,144.17,3.4685]
[1727875497322,16.66,144.21,144.15,6.08]
[1727875497623,3.4683,144.19,144.15,9.549]
[1727875497926,16.66,144.21,144.15,9.549]
[1727875498223,3.4681,144.2,144.15,9.549]
[1727875498432,16.66,144.21,144.15,9.549]
[1727875499120,3.4685,144.18,144.15,6.08]
[1727875499423,16.66,144.21,144.15,6.08]
[1727875499621,3.4681,144.2,144.15,6.08]
[1727875499927,16.66,144.21,144.15,6.08]
[1727875500323,0.12502,144.23,144.13,2.6025]
[1727875500324,16.66,144.18,144.13,1.3155]
[1727875500531,16.66,144.18,144.11,0.12502]
[1727875501517,16.66,144.16,144.11,0.12502]
[1727875501718,3.4698,144.12,144.11,0.12502]
[1727875502520,16.66,144.16,144.11,0.12502]
[1727875502728,16.66,144.18,144.12,3.4697]
[1727875502923,16.66,144.18,144.11,0.12502]
[1727875503125,3.4698,144.13,144.11,0.12502]
[1727875503335,16.66,144.16,144.11,0.12502]
[1727875503827,3.4698,144.12,144.11,0.12502]
[1727875506226,3.4712,144.06,144.05,0.12502]
[1727875508533,16.66,144.06,144.0,1.3622]
[1727875508830,3.4725,144.01,144.0,1.3622]
[1727875509337,6.08,144.08,144.0,1.3622]
[1727875509728,3.4714,144.06,144.02,3.4721]
[1727875510130,22.74,144.09,144.01,1.3176]
[1727875510330,3.62353068,144.11,144.02,22.74]
[1727875510331,16.66,144.1,144.02,22.74]
[1727875510627,6.20502,144.11,144.02,22.74]
[1727875511234,3.4707,144.09,144.05,3.4714]
[1727875511427,6.20502,144.11,144.02,22.74]
[1727875511826,3.4712,144.07,144.03,3.4719]
[1727875512229,6.20502,144.11,144.02,6.08]
[1727875512432,3.4707,144.09,144.02,6.08]
[1727875512631,22.86502,144.11,144.03,16.66]
[1727875513039,3.4707,144.09,144.05,3.4713]
[1727875513534,3.4711,144.07,144.04,3.4716]
[1727875514940,22.86502,144.11,144.02,6.08]
[1727875516040,3.4709,144.08,144.04,3.4716]
[1727875516441,22.86502,144.11,144.07,3.471]
[1727875516442,3.4704,144.1,144.07,3.471]
[1727875516635,3.4704,144.1,144.03,16.66]
[1727875516833,0.12502,144.11,144.03,16.66]
[1727875517028,16.78502,144.11,144.05,3.4713]
[1727875517238,16.78502,144.11,144.03,16.66]
[1727875517438,16.66,144.1,144.02,6.08]
[1727875517944,16.66,144.1,144.03,6.08]
[1727875518438,3.4714,144.06,144.03,6.08]
[1727875519033,0.12502,144.11,144.05,16.66]
[1727875519242,0.12502,144.11,144.06,1.3812]
[1727875519646,3.4704,144.1,144.07,3.4709]
[1727875520530,3.4704,144.1,144.06,1.3812]
[1727875521434,3.4707,144.09,144.06,1.3812]
[1727875521836,16.78502,144.11,144.03,6.06]
[1727875522130,16.66,144.09,144.03,6.06]
[1727875522338,3.4717,144.05,144.02,7.4212]
[1727875522639,3.4717,144.05,144.02,1.3612]
[1727875522847,3.4717,144.05,144.02,4.8334]
[1727875523545,3.472,144.03,144.02,1.3612]
[1727875523842,16.66,144.07,144.01,1.3176]
[1727875524948,3.4712,144.07,144.04,3.4717]
[1727875525447,3.4709,144.08,144.04,3.4717]
[1727875525638,6.06,144.1,144.04,3.4717]
[1727875525838,0.12502,144.11,144.02,1.3449]
[1727875526140,0.12502,144.11,144.03,6.08]
[1727875526647,0.12502,144.11,144.08,3.4706]
[1727875527245,3.59532,144.11,144.07,6.08]
[1727875527447,0.12502,144.11,144.07,6.08]
[1727875527745,0.12502,144.11,144.1,3.4703]
[1727875529546,1.3278,144.18,144.08,4.1205]
[1727875529740,1.3278,144.18,144.12,3.4697]
[1727875530039,1.3278,144.18,144.08,4.1205]
[1727875530749,1.3278,144.18,144.11,3.4699]
[1727875530750,3.4691,144.15,144.11,3.4699]
[1727875530948,26.66,144.16,144.08,4.1205]
[1727875531347,26.66,144.14,144.08,8.7995]
[1727875531652,26.66,144.12,144.05,6.18502]
[1727875531948,3.4711,144.07,144.05,6.18502]
[1727875532256,26.66,144.12,144.05,0.12502]
[1727875532549,6.06,144.11,144.05,0.12502]
[1727875533141,26.66,144.09,144.05,0.12502]
[1727875533343,3.4712,144.06,144.05,0.12502]
[1727875539048,26.66,144.09,144.05,0.12502]
[1727875539049,3.4712,144.07,144.05,0.12502]
[1727875540150,26.66,144.09,144.05,0.12502]
[1727875540151,3.4712,144.06,144.05,0.12502]
[1727875542053,3.4711,144.07,144.05,0.12502]
[1727875542251,7.4143,144.11,144.05,0.12502]
[1727875542545,7.4143,144.11,144.07,3.471]
[1727875542546,3.4702,144.11,144.07,3.471]
[1727875542753,6.08,144.13,144.05,0.12502]
[1727875542956,6.08,144.13,144.05,6.20502]
[1727875543362,3.4705,144.1,144.07,3.4709]
[1727875543552,6.08,144.13,144.05,6.20502]
[1727875543959,3.4706,144.09,144.06,3.4711]
[1727875544165,6.08,144.13,144.05,6.20502]
[1727875544166,26.66,144.11,144.05,6.20502]
[1727875544349,3.4712,144.07,144.05,6.20502]
[1727875545453,26.66,144.11,144.05,0.12502]
[1727875545655,6.08,144.13,144.05,0.12502]
[1727875545955,27.9295,144.15,144.07,3.4708]
[1727875545956,3.4702,144.11,144.07,3.4708]
[1727875546152,6.06,144.14,144.07,3.4708]
[1727875546553,3.4702,144.11,144.07,3.4708]
[1727875547058,6.06,144.14,144.08,3.4706]
[1727875547263,6.06,144.14,144.06,2.7251]
[1727875547660,6.06,144.14,144.05,0.12502]
[1727875547961,26.66,144.11,144.05,0.12502]
[1727875548156,3.4712,144.06,144.05,0.12502]
[1727875552353,3.4707,144.09,144.05,0.12502]
[1727875552559,6.06,144.11,144.05,0.12502]
[1727875552755,3.4706,144.09,144.06,3.4712]
[1727875553956,3.4708,144.08,144.05,3.59642]
[1727875554758,9.52500833,144.12,144.05,0.12502]
[1727875554958,26.66,144.08,144.05,0.12502]
[1727875555474,3.4712,144.06,144.05,0.12502]
[1727875555969,3.4711,144.07,144.05,0.12502]
[1727875556268,26.66,144.11,144.05,0.12502]
[1727875556478,6.06,144.12,144.05,0.12502]
[1727875556771,3.4707,144.09,144.05,0.12502]
[1727875556962,3.4707,144.09,144.06,3.4711]
[1727875557476,3.4708,144.08,144.05,3.59642]
[1727875562465,3.4712,144.06,144.05,0.12502]
[1727875564865,30.1312,144.06,144.05,0.12502]
[1727875566673,26.66,144.06,143.99,0.12502]
[1727875566869,3.4727,144.0,143.99,0.12502]
[1727875567779,3.4741,143.94,143.93,0.12502]
[1727875571668,3.474,143.95,143.93,0.12502]
[1727875571873,28.0258,144.02,143.93,0.12502]
[1727875572070,26.66,144.02,143.94,6.06]
[1727875572266,3.51845843,144.04,143.95,1.3901]
[1727875572478,3.4726,144.01,143.97,3.4734]
[1727875572676,0.12502,144.05,143.96,1.3902]
[1727875573072,3.472,144.03,143.99,3.4728]
[1727875573877,3.4718,144.04,144.0,3.4727]
[1727875574170,0.12502,144.05,143.98,6.06]
[1727875575286,0.12502,144.05,144.0,3.4727]
[1727875575670,3.4724,144.02,143.98,9.5331]
[1727875575974,0.12502,144.05,143.98,6.06]
[1727875575975,26.66,144.04,143.98,6.06]
[1727875576377,26.66,144.04,143.97,6.06]
[1727875576779,3.4722,144.02,143.97,6.06]
[1727875577081,26.66,144.04,143.97,6.06]
[1727875577279,30.1318,144.04,144.0,3.4726]
[1727875577474,0.12502,144.05,143.98,26.66]
[1727875577987,0.12502,144.05,144.04,3.4717]
[1727875578482,0.12502,144.11,144.05,3.4713]
[1727875578678,0.12502,144.11,144.02,6.06]
[1727875578679,6.18502,144.11,144.03,1.3261]
[1727875579272,3.4714,144.06,144.03,1.3261]
[1727875579584,6.18502,144.11,144.03,1.3261]
[1727875579783,3.4715,144.05,144.03,1.3261]
[1727875580085,6.18502,144.11,144.03,1.3261]
[1727875580478,26.66,144.1,144.03,1.3261]
[1727875581379,3.4715,144.05,144.03,1.3261]
[1727875581577,26.66,144.1,144.03,1.3261]
[1727875581783,6.18502,144.11,143.99,6.18502]
[1727875581784,26.66,144.07,143.99,6.18502]
[1727875581979,32.72,144.07,143.99,6.18502]
[1727875584185,6.06,144.07,143.99,0.12502]
[1727875584385,26.66,144.05,143.99,0.12502]
[1727875585283,3.4727,144.0,143.99,0.12502]
[1727875588684,6.06,144.03,143.99,0.12502]
[1727875588881,6.06,144.06,143.99,0.12502]
[1727875589484,3.472,144.03,143.99,3.59782]
[1727875590686,3.4717,144.04,144.0,3.4725]
[1727875591486,3.4717,144.04,143.99,0.12502]
[1727875591693,3.4717,144.04,144.01,3.4724]
[1727875592890,3.4716,144.05,143.99,0.12502]
[1727875593195,32.72,144.08,143.99,0.12502]
[1727875593796,3.4721,144.03,143.99,3.59782]
[1727875593999,32.72,144.08,143.99,3.59782]
[1727875594688,3.4721,144.03,143.99,3.59782]
[1727875594995,3.4721,144.03,143.99,0.12502]
[1727875595200,3.4718,144.04,143.99,0.12502]
[1727875595491,16.67,144.06,143.99,0.12502]
[1727875595993,3.472,144.03,144.0,3.4726]
[1727875596190,16.67,144.06,143.99,0.12502]
[1727875596591,3.4724,144.02,143.99,0.12502]
[1727875597093,3.4725,144.01,143.99,0.12502]
[1727875597893,6.06,144.08,143.99,0.12502]
[1727875597894,16.67,144.06,143.99,0.12502]
[1727875598389,3.4719,144.04,144.01,3.4723]
[1727875598595,16.67,144.06,144.01,3.4723]
[1727875598799,16.67,144.06,143.99,0.12502]
[1727875599305,3.4722,144.02,143.99,3.59782]
[1727875599994,3.4722,144.02,144.0,3.4727]
[1727875600294,3.4721,144.03,144.0,3.4727]
[1727875602895,16.67,144.06,143.99,0.12502]
[1727875603101,16.67,144.04,143.99,0.12502]
[1727875604191,3.4721,144.03,144.0,3.4727]
[1727875604598,16.67,144.04,143.99,0.12502]
[1727875605305,3.4727,144.0,143.99,0.12502]
[1727875606397,20.1427,144.0,143.99,0.12502]
[1727875606792,22.73,144.0,143.93,0.12502]
[1727875607090,16.67,143.97,143.93,0.12502]
[1727875607396,3.4741,143.94,143.93,0.12502]
[1727875609300,3.4751,143.9,143.88,1.51398]
[1727875609602,16.67,143.94,143.88,1.51398]
[1727875610199,16.67,143.94,143.88,0.12518]
[1727875610492,16.67,143.92,143.88,0.12518]
[1727875611088,16.67,143.94,143.88,0.12518]
[1727875611293,22.73,143.96,143.88,0.12518]
[1727875612097,16.67,143.94,143.88,0.12518]
[1727875612492,3.4751,143.9,143.88,0.12518]
[1727875613096,16.67,143.92,143.88,0.12518]
[1727875613697,3.4752,143.9,143.88,0.12518]
[1727875614202,3.4753,143.89,143.88,0.12518]
[1727875614798,3.4751,143.9,143.88,0.12518]
[1727875614999,16.67,143.94,143.88,0.12518]
[1727875615700,16.67,143.96,143.88,0.12518]
[1727875615894,22.73,143.96,143.88,0.12518]
[1727875616290,3.4743,143.94,143.9,3.475]
[1727875616500,22.73,143.96,143.88,0.12518]
[1727875616797,1.3679,143.98,143.89,6.06]
[1727875616798,24.0979,143.98,143.89,6.06]
[1727875616999,16.67,143.96,143.89,3.4752]
[1727875618302,3.4745,143.93,143.89,3.4752]
[1727875618503,16.67,143.96,143.89,3.4752]
[1727875618704,16.67,143.96,143.88,4.91348]
[1727875619096,3.4748,143.92,143.88,4.91348]
[1727875619399,16.67,143.94,143.88,1.43798]
[1727875619605,3.4751,143.9,143.88,0.12518]
[1727875620596,3.4753,143.89,143.88,0.12518]
[1727875621405,22.73,143.94,143.88,0.12518]
[1727875621611,22.73,143.96,143.88,0.12518]
[1727875621801,22.73,143.96,143.9,3.4749]
[1727875622000,3.4748,143.92,143.88,0.12518]
[1727875622503,22.73,143.96,143.88,0.12518]
[1727875622807,3.4745,143.93,143.91,3.4748]
[1727875623006,1.3679,143.98,143.9,6.06]
[1727875623007,18.0379,143.98,143.9,6.06]
[1727875623308,3.4739,143.95,143.9,6.06]
[1727875623509,3.4739,143.95,143.92,3.4744]
[1727875623705,18.0379,143.98,143.9,6.06]